Cogmind - Beta 9.2 @@@ ROGUE MODE // 2019.11.13 @ 23:02:42 Player: Cassie Rose Result: Destroyed by G-47 Trooper with Particle Gun Performance ------------- Evolutions (0) 0 Regions Visited (1) 200 Robots Destroyed (24) 120 Value Destroyed (274) 274 Prototype IDs (0) 0 Alien Tech Used (0) 0 Bonus (0) 0 TOTAL SCORE: 594 Bonus ------- None Cogmind --------- Core Integrity 0/250 Matter 246/300 Energy 100/100 System Corruption 0% Temperature Cool (9) Movement Core (550) Ox10 Location -10/Materials Parts ------- > --- POWER (1) -------- (None) > --- PROPULSION (2) --- (None) > --- UTILITY (2) ------ High-capacity Storage Unit Targeting Computer > --- WEAPON (2) ------- (None) > --- INVENTORY (12) --- Wheel Small Matter Pod (0) Structural Scanner Improved Terrain Scanner Terrain Scan Processor Light Armor Plating Peak State ------------ > --- POWER ------------ Light Ion Engine > --- PROPULSION ------- Light Treads Wheel > --- UTILITY ---------- Small Storage Unit Improved Terrain Scanner > --- WEAPON ----------- Medium Laser Light Assault Rifle > --- INVENTORY -------- Light Ion Engine Light Treads Wheel [Rating: 8] Favorites ----------- Power Light Ion Engine Engine Light Ion Engine Propulsion Wheel Treads Light Treads Wheel Wheel Utility High-capacity Storage Unit Device Improved Terrain Scanner Storage High-capacity Storage Unit Processor Targeting Computer Weapon Medium Laser Energy Gun Medium Laser Energy Cannon Beam Cannon Ballistic Gun Light Assault Rifle Launcher Grenade Launcher Build | -11 -10 ------- Run | Scr Mat Slots Evolved . | . . Power . | . . Propulsion . | . . Utility . | . . Weapon . | . . Parts Attached 19 | 7 12 Power 3 | 1 2 Engine 3 | 1 2 Core . | . . Reactor . | . . Propulsion 4 | 2 2 Treads 3 | 1 2 Leg . | . . Wheel 1 | 1 . Hover . | . . Flight . | . . Utility 4 | 2 2 Device 1 | 1 . Storage 2 | 1 1 Processor 1 | . 1 Hackware . | . . Protection . | . . Artifact . | . . Weapon 8 | 2 6 Energy Gun 3 | 1 2 Energy Cannon 1 | . 1 Ballistic Gun 1 | 1 . Ballistic Cannon . | . . Launcher 3 | . 3 Special Weapon . | . . Impact Weapon . | . . Slashing Weapon . | . . Piercing Weapon . | . . Special Melee Weapon . | . . Unidentified Prototypes . | . . Parts Lost 9 | . 9 Power 2 | . 2 Propulsion 3 | . 3 Utility . | . . Weapon 4 | . 4 Highest Loss Streak 7 | . 7 Average Slot Usage (%) 98 | . 98 Engine 13 | . 13 Treads 13 | . 13 Wheel 13 | . 13 Device 3 | . 3 Storage 14 | . 14 Processor 10 | . 10 Energy Gun 10 | . 10 Energy Cannon 4 | . 4 Ballistic Gun 9 | . 9 Launcher 3 | . 3 Naked Turns . | . . Heaviest Build 40 | 11 40 Greatest Support 20 | 10 20 Greatest Overweight (x) 10 | 1 10 Average Overweight (x) 1 | . 1 Largest Inventory Capacity 12 | 6 12 Average Capacity 10 | 5 11 Most Carried 9 | 5 9 Average Carried 6 | 3 7 Final Capacity 12 | 6 12 Final Carried 6 | 3 6 Class Distribution -------------------- 100% | Mutant Dominant Class ---------------- Mutant | -10/Materials Resources | -11 -10 ----------- Run | Scr Mat Matter Collected 445 | 291 154 Remotely . | . . Salvage Created 521 | 223 298 Parts 44 | 16 28 Haulers Intercepted . | . . Recyclers Shooed 2 | . 2 Parts Field Recycled . | . . Retrieved Matter . | . . Parts Self-Destructed . | . . Prevented . | . . Kills | -11 -10 ------- Run | Scr Mat Combat Hostiles Destroyed 11 | . 11 Guns 6 | . 6 AOE 5 | . 5 Classes Destroyed 7 | 3 4 Worker 3 | 2 1 Builder 1 | . 1 Tunneler 4 | 4 . Recycler 2 | 1 1 Watcher 3 | . 3 Swarmer 9 | . 9 Grunt 2 | . 2 Best Kill Streak 4 | 4 4 Combat Bots Only 3 | . 3 Max Kills in Single Turn 2 | 1 2 Gunslinging . | . . Exploded 2 | . 2 Melee . | . . Uniques/NPCs Destroyed . | . . Combat | -11 -10 -------- Run | Scr Mat Damage Taken 1016 | . 1016 Core 253 | . 253 Absorbed by Shields . | . . Core Remaining (%) 100 | 100 . Volleys Fired 58 | 21 37 Largest 2 | 2 2 Hottest 110 | 70 110 Shots Fired 115 | 42 73 Gun 95 | 42 53 Cannon 9 | . 9 Launcher 11 | . 11 Special . | . . Kinetic 47 | 21 26 Thermal 57 | 21 36 Explosive 11 | . 11 Electromagnetic . | . . Robot Hit Streak 8 | 6 8 Robot Miss Streak 2 | 2 2 Penetration Max . | . . Secondary Targets . | . . Shots Hit Robots 70 | 26 44 Core Hits 38 | 12 26 Critical Hits . | . . Critical Kills . | . . Critical Parts Destroyed . | . . Melee Attacks . | . . Impact . | . . Slashing . | . . Piercing . | . . Sneak Attacks . | . . Combat Hostiles . | . . Follow-up Attacks . | . . Damage Inflicted 1195 | 263 932 Guns 540 | 263 277 Cannons 105 | . 105 Explosions 550 | . 550 Melee . | . . Ramming . | . . Kinetic 136 | 74 62 Thermal 509 | 189 320 Explosive 550 | . 550 Electromagnetic . | . . Impact . | . . Slashing . | . . Piercing . | . . Highest Corruption . | . . Average Corruption . | . . Corruption Purged . | . . Overload Shots . | . . Overflow Damage 61 | . 61 Projectiles . | . . Explosions 61 | . 61 Melee . | . . Knockbacks . | . . Impact . | . . Kinetic . | . . Secondary . | . . Self-Inflicted Damage 186 | . 186 Shots 5 | . 5 Rammed 1 | . 1 Targets Rammed 1 | . 1 Kicked . | . . Crushed . | . . Highest Temperature 232 | 90 232 Average Temperature 58 | 39 68 Received Heat Transfer 147 | . 147 Siege Activations . | . . Robots Corrupted . | . . Combat Hostiles . | . . Parts Fried . | . . Impact Corruptions . | . . Robots Melted . | . . Combat Hostiles . | . . Parts Melted . | . . Heat Transferred 1406 | 555 851 Parts Sabotaged . | . . Parts Stolen . | . . Parts Stripped . | . . Power Chain Reactions . | . . Missiles Intercepted . | . . Alert | -11 -10 ------- Run | Scr Mat Peak Influence 194 | 35 194 Average Influence 62 | 17 72 Maximum Alert Level . | . . Low Security (%) 100 | 100 100 Level 1 . | . . Level 2 . | . . Level 3 . | . . Level 4 . | . . Level 5 . | . . High Security . | . . Max Security . | . . Squads Dispatched 2 | . 2 Investigation . | . . Extermination . | . . Reinforcement 2 | . 2 Assault . | . . Garrison . | . . Intercept . | . . Construction Impeded . | . . Haulers Reinforced . | . . Stealth | -11 -10 --------- Run | Scr Mat Distress Signals 2 | . 2 Communications Jammed . | . . Distress Signals . | . . Times Spotted 29 | . 29 Peak Tracking Total 5 | . 5 Tactical Retreats 1 | . 1 Traps | -11 -10 ------- Run | Scr Mat Traps Triggered 1 | . 1 Indirectly . | . . Trap Hack Attempts . | . . Triggered . | . . Disarmed . | . . Reprogrammed . | . . Reused . | . . Traps Extracted . | . . Installed . | . . Triggered . | . . Machines | -11 -10 ---------- Run | Scr Mat Machines Disabled 2 | . 2 Max in Single Turn 1 | . 1 Machines Sabotaged . | . . Garrisons Compromised . | . . Overloaded Fab Kills . | . . Fab Network Shutdowns . | . . Hacking | -11 -10 --------- Run | Scr Mat Machines Accessed 1 | . 1 Terminals 1 | . 1 Fabricators . | . . Repair Stations . | . . Recycling Units . | . . Scanalyzers . | . . Garrison Access . | . . Total Hacks 5 | . 5 Successful 3 | . 3 Failed 2 | . 2 Catastrophic 1 | . 1 Database Lockouts . | . . Manual 4 | . 4 Terminals 5 | . 5 Fabricators . | . . Repair Stations . | . . Recycling Units . | . . Scanalyzers . | . . Garrison Access . | . . Terminal Hacks 2 | . 2 Part Schematic 1 | . 1 Zone Layout 1 | . 1 Fabricator Hacks . | . . Repair Station Hacks . | . . Recycling Unit Hacks . | . . Scanalyzer . | . . Garrison Access Hacks . | . . Unauthorized Hacks 3 | . 3 Terminals 1 | . 1 Botnet 1 | . 1 Fabricators . | . . Repair Stations . | . . Recycling Units . | . . Scanalyzers . | . . Garrison Access . | . . Data Cores Recovered . | . . Used . | . . Hacking Detections 1 | . 1 Full Trace Events 1 | . 1 Feedback Events . | . . Feedback Blocked . | . . Robot Schematics Acquired . | . . Robots Built . | . . Matter . | . . Time . | . . Total Robot Build Rating . | . . Part Schematics Acquired 1 | . 1 Parts Built . | . . Matter . | . . Time . | . . Total Part Build Rating . | . . Parts Repaired . | . . Time . | . . Parts Recycled . | . . Recycled Matter . | . . Retrieved Matter . | . . Retrieved Components . | . . Parts Scanalyzed . | . . Part Schematics Acquired . | . . Parts Damaged . | . . Bothacking | -11 -10 ------------ Run | Scr Mat Used RIF Installer . | . . Robots Hacked . | . . Non-combat . | . . Combat . | . . Robot Hacks Applied . | . . Relay Couplers Released . | . . Robots Rewired . | . . Allies Hacked . | . . Hacks Repelled . | . . Allies | -11 -10 -------- Run | Scr Mat Total Allies . | . . Largest Group . | . . Highest-Rated Group . | . . Highest-Rated Ally . | . . Total Orders . | . . Ally Attacks . | . . Total Damage . | . . Kills . | . . Allies Corrupted . | . . Allies Melted . | . . Intel | -11 -10 ------- Run | Scr Mat Robot Analysis Total . | . . Derelict Logs Recovered . | . . Drone Launches . | . . Drone Recoveries . | . . Exploration | -11 -10 ------------- Run | Scr Mat Turns Passed 1274 | 239 1035 Spaces Moved 619 | 109 510 Core 7 | 4 3 Treads 288 | . 288 Legs . | . . Wheels 324 | 105 219 Hover . | . . Flight . | . . Fastest Speed 50 | 50 80 Average Speed 136 | 80 148 Slowest Speed 550 | 100 550 Overloaded Moves . | . . Propulsion Burnouts . | . . Robots Hopped . | . . Cave-ins Triggered . | . . Exploration Rate (%) 24 | 5 44 Regions Visited 1 Branch Regions . Pre-discovered Areas . | . . Known Exits Taken . | . . Unknown Exits Taken 1 | 1 . Scrap Searched . | . . Spaces Dug . | . . Terrain Destroyed 67 | . 67 Melee . | . . Projectile . | . . AOE 67 | . 67 Actions | -11 -10 --------- Run | Scr Mat Total 944 | 221 723 Wait 224 | 75 149 Move 618 | 108 510 Hop . | . . Pick Up 21 | 10 11 Fast Attach 1 | . 1 Attach 12 | 7 5 Detach . | . . Swap 6 | . 6 Drop 3 | . 3 Fire 58 | 21 37 Melee . | . . Ram . | . . Kick . | . . Crush 1 | . 1 Escape Stasis . | . . Rewire . | . . Trap . | . . Miscellaneous . | . . Route ------- -11/Scrapyard -10/Materials (discovered 1 exit: [*Mat]) History --------- Turn | Location | Event 2 | -11/Scrapyard | Met Revision 17 15 | -11/Scrapyard | Discovered new exit (range 16) 240 | -11/Scrapyard | Entered Materials 333 | -10/Materials | Build established: Mutant 717 | -10/Materials | Discovered new exit (range 10) 1263 | -10/Materials | Core integrity fell below 50% 1270 | -10/Materials | Core integrity fell below 20% 1275 | -10/Materials | Destroyed by G-47 Trooper with Particle Gun Last Messages --------------- 01254_ G-34 Mercenary destroyed. 01257_ Wheel destroyed. 01257_ Destroyed Wheel. 01257_ Med. Laser destroyed. 01260_ Lgt. Treads destroyed. 01260_ Destroyed Lgt. Treads. 01260_ Lgt. Ion Engine destroyed. 01260_ Destroyed Lgt. Ion Engine. 01260_ Grenade Launcher destroyed. 01260_ Destroyed Grenade Launcher. 01263_ U-05 Engineer lays Concrete. 01267_ Grenade Launcher destroyed. 01268_ U-05 Engineer builds a Wall. 01268_ U-05 Engineer lays Concrete. 01270_ U-05 Engineer builds a Wall. 01272_ O-16 Technician: "IFF HANDSHAKE FAILED. SECURING TERMINAL." 01274_ U-05 Engineer lays Concrete. 01274_ ALERT: Hostiles spotted, dispatching reinforcements to Terminal M004. 01275_ U-05 Engineer lays Concrete. Map ----- +----------------------------------------------------+ | ??????????????????????????????????????????? | | ??????????????????????????????????????????? | | ??????????????????????????????????????????? | | ??????????????????????????????????????????? | | ??????????????????????????????????????????? | | ??????????????????????????????????????????? | | ??????????????????????????????????????????? | | ??????????????????????????????????????????? | | ??????????????????????????????????????????? | | ??????????????????????? ????????????????? | | ??????????????????????? #???????????????? | | ??????????????????????#[ #???????????????? | | ??????????????????????#r= #???????????????? | | ??????????????????????# #???????????????? | | ??????????????????????# s #???????????????? | | ??????????????????????# #??#???#????????? | | ??????????????????????# #? ?? ?????????? | | ?????????????########## #?"?? ?????????? | | ?????????????# # # ?? ?????????? | | ?????????????# # # ?? ?????????? | | ?????????????# """ # +?? ??????????? | | ?????????????#""""" # #?""" #??????? | | #????????????#""""" #s # """ #??????? | | # ???????????#""""" # # """ #??????? | | # ??????????# """ ???????? | | ??????????# @ #??????????????? | | ??????#??# #??????????????? | | ###############+# g #??????????????? | | ^%! #??????????????? | | ^= #?#????????????? | | uu #???#??????????? | | ^ ############ #??????????????? | | # #?????########???????#??????? | | ^ # #??????????????????????#????? | | ######### # ###?????????????????????????? | | ????????# ## # ###???????????#??????????# | | ???????## # #????????#?????????????? | | ???????## # #????##??????????????#?? | | ???????## # #???????##?????????????? | | ???????## # "" #???????#######?##?##??? | | ???????## # "" #??????## ##???????? | | ???????## # "" #???????# ########## | | ???????## ##+############# " # // # | | ??????### %%% + """ #" // # | | ??????# # [ ################ "" #T / # | | ####### ##+##= #???????#?## """ #" # | | # ==* #????#?#???# "" # # | | *# [ ##??#???????# """ # """ # | | ]]] # #?#######??# """ # """ # | | ]]] !#* !* """ ##?# #### """ # """ # | +----------------------------------------------------+ Best States ------------- Heat Dissipation 25 Energy Generation 10 Energy Capacity 125 Matter Stores 300 Matter Capacity 300 Sight Range 16 Terrain Scan Range 16 Terrain Scan Density 10 Evasion (%) 44 Targeting Accuracy 5 Recoil Reduction 1 Item Schematics ----------------- Hcp. Storage Unit | -10/Materials | Hacked Robot Schematics ------------------ None Fabricated ------------ Nothing Alien Tech Used ----------------- None Achievements -------------- None Challenges ------------ None Game ------ Seed RemoteMyomerTendrils Manual? 0 Play Time 00:17:43 Cumulative 13.8 hours Start 2019.11.13 @ 22:46:28 End 2019.11.13 @ 23:02:42 Sessions 1 Manual Loads 0 Difficulty Rogue Special Mode None Game No. 21 Rogue 21 Adventurer 0 Explorer 0 Win Type - Total 0 Types 0/0/0/0/0/0/0 Lore% 18 Gallery% 14 Achievement% 16 Wizard Run 0 Options --------- ASCII 0 Keyboard 0 Movement Arrows Keybinds 0 Fullscreen 1 Font 18/X11 Map View 76x50 Tactical HUD 1 Map Filters NONE Filters LOW_CONTRAST(13,24,33) Steam 1 RUN: b763c2c0-19d2-47c0-aaa5-9ee286d79bc3